Cogmind - Beta 14 @@@ ROGUE MODE // 2024.09.03 @ 07:13:28 Player: Coronach Result: Destroyed by AV-SXK(R) with Subdweller Machine Gun Performance ------------- Evolutions (0) 0 Regions Visited (2) 400 Robots Destroyed (13) 65 Value Destroyed (381) 381 Prototype IDs (0) 0 Alien Tech Used (0) 0 Bonus (0) 0 TOTAL SCORE: 846 Bonus ------- None Cogmind --------- Core Integrity 0/250 Matter 165/300 Energy 148/160 System Corruption 0% Temperature Cool (8) Movement Walking (190) Ox1 Location -10/Subcaves Parts ------- > --- POWER (1) -------- Light Nuclear Core > --- PROPULSION (2) --- Aluminum Leg Aluminum Leg > --- UTILITY (2) ------ Large Storage Unit Improved Terrain Scanner > --- WEAPON (2) ------- Beam Cannon Beam Cannon > --- INVENTORY (15) --- Light Ion Engine Aluminum Leg Compact Wheel Improved Heat Sink Small Storage Unit Medium Storage Unit High-capacity Storage Unit Large Matter Pod (120) Structural Scanner Tractor Beam Assault Rifle Assault Rifle Grenade Launcher Peak State ------------ > --- POWER ------------ Light Nuclear Core > --- PROPULSION ------- Aluminum Leg Aluminum Leg > --- UTILITY ---------- Large Storage Unit Improved Terrain Scanner > --- WEAPON ----------- Assault Rifle Assault Rifle > --- INVENTORY -------- Light Ion Engine Aluminum Leg Aluminum Leg Wheel Improved Heat Sink Small Storage Unit Medium Storage Unit High-capacity Storage Unit Large Matter Pod Structural Scanner Signal Interpreter Grenade Launcher Mining Claw [Rating: 12] Favorites ----------- Power Light Nuclear Core Engine Light Ion Engine Power Core Light Nuclear Core Propulsion Aluminum Leg Leg Aluminum Leg Utility Improved Terrain Scanner Device Improved Terrain Scanner Storage Large Storage Unit Processor Signal Interpreter Weapon Beam Cannon Energy Cannon Beam Cannon Ballistic Gun Assault Rifle Launcher Grenade Launcher Slashing Weapon Mining Claw Build | -11 -10 -10 ------- Run | Yrd Mat Sub Slots Evolved . | . . . Power . | . . . Propulsion . | . . . Utility . | . . . Weapon . | . . . Parts Attached 23 | 2 17 4 Power 2 | . 2 . Engine . | . . . Core 2 | . 2 . Reactor . | . . . Propulsion 4 | . 3 1 Treads . | . . . Leg 4 | . 3 1 Wheel . | . . . Hover . | . . . Flight . | . . . Utility 6 | 1 5 . Device 3 | 1 2 . Storage 2 | . 2 . Processor 1 | . 1 . Hackware . | . . . Protection . | . . . Artifact . | . . . Weapon 11 | 1 7 3 Energy Gun . | . . . Energy Cannon 5 | . 3 2 Ballistic Gun 2 | 1 1 . Ballistic Cannon . | . . . Launcher 1 | . . 1 Special Weapon . | . . . Impact Weapon . | . . . Slashing Weapon 3 | . 3 . Piercing Weapon . | . . . Special Melee Weapon . | . . . Unidentified Prototypes . | . . . Parts Lost 1 | . . 1 Power . | . . . Propulsion 1 | . . 1 Utility . | . . . Weapon . | . . . Highest Loss Streak 1 | . . 1 To Critical Strikes . | . . . Average Slot Usage (%) 99 | . 99 99 Engine 5 | . 6 . Core 8 | . 7 14 Leg 27 | . 27 27 Device 13 | . 13 14 Storage 14 | . 14 14 Energy Cannon 12 | . 9 24 Ballistic Gun 8 | . 10 . Slashing Weapon 6 | . 7 . Peak Build Rating 12 | 9 12 12 Average Rating 10 | 6 10 11 On Entrance 9 | 6 9 12 Naked Turns . | . . . Heaviest Build 32 | 13 32 32 Greatest Support 20 | 20 20 20 Greatest Overweight (x) 10 | . 10 1 Average Overweight (x) . | . . 1 Largest Inventory Capacity 15 | 8 15 15 Average Capacity 14 | 8 14 15 Most Carried 15 | 6 15 15 Average Carried 11 | 2 11 13 Final Capacity 15 | 8 15 15 Final Carried 15 | 2 15 13 Class Distribution -------------------- 96% | Mutant 3% | Scavenger-Mutant Dominant Class ---------------- Mutant | -10/Materials Mutant | -10/Subcaves Resources | -11 -10 -10 ----------- Run | Yrd Mat Sub Matter Collected 690 | 256 434 . Remotely . | . . . Salvage Created 494 | 16 422 56 Parts 28 | 3 21 4 Haulers Intercepted 1 | . 1 . Recyclers Shooed 2 | 1 1 . Parts Field Recycled . | . . . Retrieved Matter . | . . . Parts Self-Destructed 2 | . . 2 Prevented . | . . . Kills | -11 -10 -10 ------- Run | Yrd Mat Sub Combat Hostiles Destroyed 9 | . 6 3 Guns 4 | . 4 . Cannons 3 | . 2 1 AOE 2 | . . 2 Classes Destroyed 5 | 1 3 1 Tunneler 1 | 1 . . Hauler 1 | . 1 . Recycler 2 | . 2 . Grunt 6 | . 6 . Subdweller 3 | . . 3 Best Kill Streak 2 | 1 2 2 Combat Bots Only 2 | . 2 2 Max Kills in Single Turn 1 | 1 1 1 Gunslinging . | . . . Exploded 1 | . . 1 Melee . | . . . Uniques/NPCs Destroyed . | . . . Combat | -11 -10 -10 -------- Run | Yrd Mat Sub Hostile Shots Fired 54 | . 33 21 Missed 17 | . 10 7 Damage Taken 676 | . 291 385 Core 252 | . 93 159 Absorbed by Shields . | . . . Core Remaining (%) 100 | 100 . . Volleys Fired 53 | 6 33 14 Largest 2 | 2 2 2 Hottest 120 | 40 120 120 Shots Fired 97 | 12 66 19 Gun 52 | 12 40 . Cannon 36 | . 26 10 Launcher 9 | . . 9 Special . | . . . Kinetic 52 | 12 40 . Thermal 36 | . 26 10 Explosive 9 | . . 9 Electromagnetic . | . . . Robot Hit Streak 8 | 7 7 8 Robot Miss Streak 5 | 2 5 2 Penetration Max . | . . . Secondary Targets . | . . . Shots Hit Robots 58 | 8 36 14 Core Hits 24 | 1 16 7 Critical Kills . | . . . Critical Parts Destroyed . | . . . Critical Strikes . | . . . Melee Attacks 30 | . 30 . Impact . | . . . Slashing 30 | . 30 . Piercing . | . . . Sneak Attacks . | . . . Combat Hostiles . | . . . Follow-up Attacks . | . . . Damage Inflicted 1059 | 100 525 434 Guns 382 | 100 282 . Cannons 314 | . 243 71 Explosions 363 | . . 363 Melee . | . . . Ramming . | . . . Kinetic 382 | 100 282 . Thermal 314 | . 243 71 Explosive 363 | . . 363 Electromagnetic . | . . . Impact . | . . . Slashing . | . . . Piercing . | . . . Highest Corruption . | . . . Average Corruption . | . . . Corruption Purged . | . . . Corruption Blocked . | . . . Overload Shots . | . . . Overflow Damage . | . . . Projectiles . | . . . Explosions . | . . . Melee . | . . . Knockbacks . | . . . Impact . | . . . Kinetic . | . . . Secondary . | . . . Self-Inflicted Damage 38 | . . 38 Shots 5 | . . 5 Rammed . | . . . Targets Rammed . | . . . Kicked . | . . . Crushed . | . . . Highest Temperature 366 | . 366 18 Average Temperature 124 | . 139 8 Received Heat Transfer 207 | . 207 . Effects 2 | . 2 . Matter Decay 1 | . 1 . Damage (minor) 1 | . 1 . Siege Activations . | . . . Robots Corrupted . | . . . Combat Hostiles . | . . . Parts Fried . | . . . Impact Corruptions . | . . . Robots Melted . | . . . Combat Hostiles . | . . . Parts Melted 2 | . 2 . Heat Transferred 666 | . 518 148 Parts Sabotaged . | . . . Parts Stolen . | . . . Parts Stripped . | . . . Power Chain Reactions . | . . . Alert | -11 -10 -10 ------- Run | Yrd Mat Sub Peak Influence 118 | 5 118 . Initial 3 | . 3 . Average 44 | 2 46 . Maximum Alert Level . | . . . Low Security (%) 100 | 100 100 . Level 1 . | . . . Level 2 . | . . . Level 3 . | . . . Level 4 . | . . . Level 5 . | . . . High Security . | . . . Max Security . | . . . Squads Dispatched 1 | . 1 . Investigation . | . . . Extermination . | . . . Reinforcement 1 | . 1 . Assault . | . . . Garrison . | . . . Intercept . | . . . Searches Triggered . | . . . Construction Impeded . | . . . Haulers Reinforced . | . . . Active Scanning Responses . | . . . Cargo Convoy Interrupts . | . . . Stealth | -11 -10 -10 --------- Run | Yrd Mat Sub Distress Signals . | . . . Communications Jammed . | . . . Distress Signals . | . . . Times Spotted 18 | . 14 4 Peak Tracking Total 4 | . 4 2 Tactical Retreats . | . . . Traps | -11 -10 -10 ------- Run | Yrd Mat Sub Traps Triggered 2 | . 1 1 Indirectly . | . . . Trap Hack Attempts . | . . . Triggered . | . . . Disarmed . | . . . Reprogrammed . | . . . Reused . | . . . Traps Extracted . | . . . Installed . | . . . Triggered . | . . . Machines | -11 -10 -10 ---------- Run | Yrd Mat Sub Machines Disabled 1 | . 1 . Max in Single Turn 1 | . 1 . Machines Repaired . | . . . Machines Dismantled . | . . . Machines Sabotaged . | . . . Overloaded Fab Kills . | . . . Hacking | -11 -10 -10 --------- Run | Yrd Mat Sub Machines Accessed 7 | . 7 . Terminals 6 | . 6 . Fabricators . | . . . Repair Stations . | . . . Recycling Units 1 | . 1 . Scanalyzers . | . . . Garrison Access . | . . . Total Hacks 20 | . 20 . Successful 11 | . 11 . Failed 9 | . 9 . Catastrophic 1 | . 1 . Database Lockouts . | . . . Manual 20 | . 20 . Terminals 17 | . 17 . Fabricators . | . . . Repair Stations . | . . . Recycling Units 3 | . 3 . Scanalyzers . | . . . Garrison Access . | . . . Terminal Hacks 2 | . 2 . Unreport Threat 1 | . 1 . Zone Layout 1 | . 1 . Fabricator Hacks . | . . . Repair Station Hacks . | . . . Recycling Unit Hacks . | . . . Scanalyzer . | . . . Garrison Access Hacks . | . . . Unauthorized Hacks 9 | . 9 . Terminals 7 | . 7 . Botnet 1 | . 1 . Operators 1 | . 1 . Skim 5 | . 5 . Fabricators . | . . . Repair Stations . | . . . Recycling Units 2 | . 2 . Reject 1 | . 1 . Recyclers 1 | . 1 . Scanalyzers . | . . . Garrison Access . | . . . Data Cores Recovered . | . . . Used . | . . . Hacking Detections 7 | . 7 . Full Trace Events . | . . . Feedback Events . | . . . Feedback Blocked . | . . . Robot Schematics Acquired . | . . . Robots Built . | . . . Authchips . | . . . Time . | . . . Total Robot Build Rating . | . . . Part Schematics Acquired . | . . . Parts Built . | . . . Authchips . | . . . Time . | . . . Total Part Build Rating . | . . . Parts Repaired . | . . . Time . | . . . Parts Recycled . | . . . Recycled Matter . | . . . Retrieved Matter . | . . . Retrieved Components . | . . . Parts Scanalyzed . | . . . Part Schematics Acquired . | . . . Parts Damaged . | . . . Bothacking | -11 -10 -10 ------------ Run | Yrd Mat Sub Used RIF Installer . | . . . Robots Hacked . | . . . Non-combat . | . . . Combat . | . . . Robot Hacks Applied . | . . . Relay Couplers Released . | . . . Fabnet Peak Effective % . | . . . Robots Rewired . | . . . Allies Hacked . | . . . Hacks Repelled . | . . . Allies | -11 -10 -10 -------- Run | Yrd Mat Sub Total Allies . | . . . Largest Group . | . . . Highest-Rated Group . | . . . Highest-Rated Ally . | . . . Total Orders . | . . . Ally Attacks . | . . . Total Damage . | . . . Kills . | . . . Allies Corrupted . | . . . Allies Melted . | . . . Intel | -11 -10 -10 ------- Run | Yrd Mat Sub Robot Analysis Total . | . . . Derelict Logs Recovered . | . . . Drone Launches . | . . . Drone Recoveries . | . . . Exploration | -11 -10 -10 ------------- Run | Yrd Mat Sub Turns Passed 1665 | 32 1319 314 Spaces Moved 719 | 8 566 145 Core 1 | . 1 . Treads . | . . . Legs 718 | 8 565 145 Wheels . | . . . Hover . | . . . Flight . | . . . Fastest Speed 120 | 120 120 190 Average Speed 184 | 120 183 190 Slowest Speed 550 | 120 550 190 Overloaded Moves . | . . . Propulsion Burnouts . | . . . Robots Hopped . | . . . Cave-ins Triggered . | . . . Exploration Rate (%) 33 | 2 87 11 Regions Visited 2 Branch Regions 1 Pre-discovered Areas 1 | . 1 . Known Exits Taken . | . . . Unknown Exits Taken 2 | 1 1 . Scrap Searched . | . . . Spaces Dug 16 | . 13 3 Terrain Destroyed 32 | . 13 19 Melee 13 | . 13 . Projectile . | . . . AOE 19 | . . 19 Terrain Rammed . | . . . Walls Destroyed . | . . . Machines Disabled . | . . . Actions | -11 -10 -10 --------- Run | Yrd Mat Sub Total 900 | 19 717 164 Wait 51 | . 51 . Move 717 | 7 565 145 Hop . | . . . Pick Up 14 | . 14 . Fast Attach 5 | 1 4 . Attach 4 | . 2 2 Detach 3 | . 3 . Swap 14 | 1 11 2 Drop 9 | 4 4 1 Fire 53 | 6 33 14 Melee 30 | . 30 . Ram . | . . . Kick . | . . . Crush . | . . . Escape Stasis . | . . . Rewire . | . . . Trap . | . . . Miscellaneous . | . . . Route ------- -11/Scrapyard -10/Materials (discovered 4 exits: *Mat x2 / [*Min] / [*Sub]) -10/Subcaves History --------- Turn | Location | Event 23 | -11/Scrapyard | Discovered new exit (range 3) 33 | -11/Scrapyard | Entered Materials 309 | -10/Materials | Build established: Mutant 710 | -10/Materials | Discovered new exit (range 10) 741 | -10/Materials | Identified exit to Materials 904 | -10/Materials | Discovered exit to Materials (range 15) 1121 | -10/Materials | Discovered new exit (range 7) 1256 | -10/Materials | Learned location of 2 exits from Mines 1316 | -10/Materials | Learned location of Mines (-9) 1347 | -10/Materials | Discovered new exit (range 3) 1352 | -10/Materials | Entered Subcaves 1543 | -10/Subcaves | A swath of the cavern ceiling suddenly collapsed 1570 | -10/Subcaves | Core integrity fell below 50% 1589 | -10/Subcaves | Core integrity fell below 20% 1666 | -10/Subcaves | Destroyed by AV-SXK(R) with Subdweller Machine Gun Last Messages --------------- 01339_ U-05 Engineer lays Concrete. 01339_ U-05 Engineer builds a Wall. 01343_ U-05 Engineer lays Concrete. 01344_ U-05 Engineer builds a Wall. 01347_ EXIT=FOUND 01348_ U-05 Engineer lays Concrete. LOCATION=UNKNOWN AMBIENT_HEAT=-10 GOAL=ESCAPE 01352_ Dropped Mining Claw. 01530_ Triggered Piercing Trap. 01530_ Spikes shoot up from the floor. 01530_ Critical hit (Impale). A swath of the cavern ceiling suddenly collapses. 01588_ Destroyed Scrap Shield. 01588_ K7-DC3(R) destroyed. 01588_ Aluminum Leg destroyed. 01590_ IS-IG6(R) destroyed. 01662_ 34-TNS(R) destroyed. 01666_ Subatomizers dissect the Sub. Machine Gun. Map ----- +----------------------------------------------------+ | ?????????????????????????????????????????????????? | | ?????????????????????????????????????????????????? | | ?????????????????????????????????????????????????? | | ?????????????????????????????????????????????????? | | ?????????????????????????????????????????????????? | | ?????????????????????????????????????????????????? | | ?????????????????????????????????????????????????? | | ?????????????????????????????????????????????????? | | ?#??????#????????????????????????????????????????? | | ?????????????????#????????#??????#???????????????? | | ????#??????#?????????????#???????????????????????? | | ????#?????????#?????????#????????????????????????? | | ??????#??????##??????????????????????????????????? | | ?????????????????????????????????????????????????? | | ??????########?????#?###?????????????????????????? | | ####?## # ##????#### ?????????????????????????? | | ### ##???# ###??#?#?????????????????? | | " # #?#???# #??????????????#????????? | | #" ####### #????#??????????????????? | | ##" & & ### ###?????????????????????? | | """# & #### ###???????????????????? | | # ### ## #???????????????????? | | "### ##???????????????????? | | ""#?# # ##????????????????????? | | ""#?###### ### ## # # #???#?????????????????? | | "#"#????# ###?##########@ ##????????????????????? | | #"""##??#####???????????##!!#?#??????????????????? | | ###"#????????#???????????##%=#???????????????????? | | # ?##??????#???#??????????#[R #??????????????????? | | #?##??#????#??#??#????????# ?????????????????? | | #?#??#?????#????#????????# "" ""????????????????? | | ##??##?#??????????????????""""" """??????????????? | | ##???#??#?????????##?"??#?# """ "??????????????? | | #?????????????????????????#""""" "??????????????? | | #????#?#?????????#???????? """??# ?????????????? | | #???#???#????????#??? ?"?? ""????"" ?????????????? | | #????#?????#???????????"?? ??????? ????????????? | | ????##???????????????????? ???#????? ???????????? | | ??????#??????????????????????????????????????????? | | ??#?????#??????????? ????????????????????????????? | | #??#?????#???????????????????????????????????????? | | ?????????????????????????????????????????????????? | | ###???##????#????????????????????????????????????? | | ##??#??????????????????????????????????????????? | | #??????##?#???????????????????????????????????? | | ##?????#???????????????????????????????????????? | | #???#??#???????????????????????????????????????? | | ##?????????????????????????????????????????????? | | ## #???????#?????????????????????????????????????? | | ## #?????????????????????????????????????????????? | +----------------------------------------------------+ Best States ------------- Heat Dissipation 25 Energy Generation 14 Energy Capacity 160 Matter Stores 404 Matter Capacity 450 Sight Range 16 Terrain Scan Range 16 Terrain Scan Density 10 Evasion (%) 55 Item Schematics ----------------- None Robot Schematics ------------------ None Fabricated ------------ Nothing Alien Tech Used ----------------- None Achievements -------------- None Challenges ------------ None Game ------ Seed FlakTransdimensionalAirjet Manual? 0 Play Time 00:24:14 Cumulative 232.5 hours Start 2024.09.03 @ 06:34:45 End 2024.09.03 @ 07:13:28 Sessions 3 Manual Loads 0 Difficulty Rogue Special Mode None Game No. 95 Rogue 92 Adventurer 0 Explorer 3 Win Type - Total 3 Types 2/0/0/1/0/0/0/0/0 Lore% 30 Gallery% 63 Achievement% 51 Wizard Run 0 Options --------- Layout 2 ASCII 0 Keyboard 1 Movement Numpad Keybinds 0 Fullscreen 2 Font 24/Terminus Map View 76x44 Zoom Use 0% Tactical HUD 1 Map Filters NONE Filters NONE Steam 1 RUN: 4e160c4d-ef50-4759-8b1b-45734c3527d7